[Event "*** Titled Tuesday Blitz"]
[Site "Chess.com"]
[Date "2020.03.03"]
[Round "2"]
[White "aa175"]
[Black "IMDT02"]
[Result "0-1"]
[WhiteElo "2252"]
[BlackElo "2492"]
[TimeControl "180+1"]
[EndTime "13:20:36 PST"]
[Termination "IMDT02 won on time"]

1. d4 {[%clk 0:03:00.9]} 1... Nf6 {[%clk 0:02:59.9]} 2. Nf3 {[%clk 0:03:01.8]}
2... e6 {[%clk 0:03:00.3]} 3. Bf4 {[%clk 0:03:01.6]} 3... b6 {[%clk 0:02:58.9]}
4. e3 {[%clk 0:03:01.8]} 4... Bb7 {[%clk 0:02:59.5]} 5. Nbd2 {[%clk 0:03:02.4]}
5... h6 {[%clk 0:02:59.8]} 6. h3 {[%clk 0:02:55.9]} 6... Rg8 {[%clk 0:02:59]} 7.
c4 {[%clk 0:02:48.9]} 7... g5 {[%clk 0:02:59.2]} 8. Bh2 {[%clk 0:02:48.9]} 8...
d6 {[%clk 0:02:59.8]} 9. Bd3 {[%clk 0:02:47.6]} 9... Nbd7 {[%clk 0:03:00.3]} 10.
e4 {[%clk 0:02:44.9]} 10... Bg7 {[%clk 0:02:20.5]} 11. Qe2 {[%clk 0:02:36.2]}
11... Qe7 {[%clk 0:02:18.6]} 12. O-O-O {[%clk 0:02:34.5]} 12... e5 {[%clk
0:02:18.4]} 13. d5 {[%clk 0:02:26.7]} 13... O-O-O {[%clk 0:02:17.2]} 14. Nf1
{[%clk 0:02:26.1]} 14... Kb8 {[%clk 0:02:09.6]} 15. Ne3 {[%clk 0:02:25.7]} 15...
Nh5 {[%clk 0:02:06.6]} 16. Nf5 {[%clk 0:02:25.1]} 16... Qf8 {[%clk 0:02:06.7]}
17. Nxg5 {[%clk 0:02:10.7]} 17... Nf4 {[%clk 0:02:02.9]} 18. Bxf4 {[%clk
0:02:09.4]} 18... exf4 {[%clk 0:02:03.8]} 19. Nf3 {[%clk 0:02:05.1]} 19... Bf6
{[%clk 0:01:59.5]} 20. N5d4 {[%clk 0:02:02.4]} 20... Rxg2 {[%clk 0:01:53.9]} 21.
Rdg1 {[%clk 0:01:55.7]} 21... Rxg1+ {[%clk 0:01:51.3]} 22. Rxg1 {[%clk
0:01:56.6]} 22... Ne5 {[%clk 0:01:51]} 23. Nxe5 {[%clk 0:01:46.7]} 23... Bxe5
{[%clk 0:01:50.8]} 24. Nf3 {[%clk 0:01:39.4]} 24... Bf6 {[%clk 0:01:46.1]} 25.
e5 {[%clk 0:01:27.9]} 25... Re8 {[%clk 0:01:36.9]} 26. exf6 {[%clk 0:01:01.7]}
26... Rxe2 {[%clk 0:01:35.5]} 27. Bxe2 {[%clk 0:01:01.4]} 27... c6 {[%clk
0:01:17.3]} 28. dxc6 {[%clk 0:00:27.3]} 28... Bxc6 {[%clk 0:01:18.2]} 29. Nd4
{[%clk 0:00:27.6]} 29... Bd7 {[%clk 0:01:16.6]} 30. Bg4 {[%clk 0:00:13]} 30...
Bxg4 {[%clk 0:00:52.3]} 31. Rxg4 {[%clk 0:00:13.9]} 31... d5 {[%clk 0:00:52.6]}
32. Nc6+ {[%clk 0:00:10]} 32... Kb7 {[%clk 0:00:50.6]} 33. Ne7 {[%clk
0:00:07.5]} 33... h5 {[%clk 0:00:43.7]} 34. Rg7 {[%clk 0:00:03]} 34... dxc4
{[%clk 0:00:41.6]} 35. Nf5 {[%clk 0:00:03.1]} 35... Qc5 {[%clk 0:00:39.2]} 36.
Rxf7+ {[%clk 0:00:02.9]} 36... Ka6 {[%clk 0:00:39.6]} 37. Ne7 {[%clk 0:00:02.3]}
37... Qxf2 {[%clk 0:00:38.8]} 38. Nc8 {[%clk 0:00:02.1]} 38... Qe3+ {[%clk
0:00:34.6]} 39. Kc2 {[%clk 0:00:02.5]} 39... Qd3+ {[%clk 0:00:27.4]} 40. Kc1
{[%clk 0:00:02.7]} 40... f3 {[%clk 0:00:23.2]} 41. Rxa7+ {[%clk 0:00:02]} 41...
Kb5 {[%clk 0:00:23.6]} 42. f7 {[%clk 0:00:02.9]} 42... f2 {[%clk 0:00:17.8]} 43.
f8=Q {[%clk 0:00:02]} 43... f1=Q+ {[%clk 0:00:17.7]} 44. Qxf1 {[%clk 0:00:02.9]}
44... Qxf1+ {[%clk 0:00:18.2]} 45. Kd2 {[%clk 0:00:02.9]} 45... Qg2+ {[%clk
0:00:18.4]} 46. Kd1 {[%clk 0:00:01.8]} 46... Qh1+ {[%clk 0:00:18.4]} 47. Ke2
{[%clk 0:00:01.5]} 47... Qh2+ {[%clk 0:00:18.8]} 48. Ke1 {[%clk 0:00:01.8]}
48... Qxh3 {[%clk 0:00:18.9]} 49. Nd6+ {[%clk 0:00:01.5]} 49... Kc6 {[%clk
0:00:18.8]} 50. Ne4 {[%clk 0:00:01.7]} 50... Qe3+ {[%clk 0:00:18.1]} 51. Kd1
{[%clk 0:00:01.8]} 51... Qxe4 {[%clk 0:00:18.3]} 52. Rg7 {[%clk 0:00:01.9]}
52... Qd4+ {[%clk 0:00:15.2]} 0-1

[Event "*** Titled Tuesday Blitz"]
[Site "Chess.com"]
[Date "2020.03.03"]
[Round "2"]
[White "novocane"]
[Black "ural58"]
[Result "1-0"]
[WhiteElo "2164"]
[BlackElo "2403"]
[TimeControl "180+1"]
[EndTime "13:20:44 PST"]
[Termination "novocane won on time"]

1. d4 {[%clk 0:03:00.8]} 1... d5 {[%clk 0:02:59.6]} 2. c4 {[%clk 0:03:00.3]}
2... e5 {[%clk 0:02:59.6]} 3. dxe5 {[%clk 0:02:59.6]} 3... d4 {[%clk 0:03:00.5]}
4. a3 {[%clk 0:02:55.5]} 4... Nc6 {[%clk 0:03:00.1]} 5. e3 {[%clk 0:02:36.6]}
5... Nge7 {[%clk 0:02:59.6]} 6. f4 {[%clk 0:02:28.8]} 6... Bf5 {[%clk
0:02:52.1]} 7. Nf3 {[%clk 0:02:19.1]} 7... dxe3 {[%clk 0:02:33.1]} 8. Qxd8+
{[%clk 0:01:55.2]} 8... Rxd8 {[%clk 0:02:34]} 9. Bxe3 {[%clk 0:01:54.5]} 9... f6
{[%clk 0:01:48.2]} 10. exf6 {[%clk 0:01:48.5]} 10... gxf6 {[%clk 0:01:49.1]} 11.
Nc3 {[%clk 0:01:41.9]} 11... Rg8 {[%clk 0:01:40.7]} 12. Kf2 {[%clk 0:01:21.3]}
12... h5 {[%clk 0:01:03.1]} 13. Be2 {[%clk 0:01:18.7]} 13... Bd3 {[%clk
0:00:56.2]} 14. Rad1 {[%clk 0:00:48.2]} 14... Bxe2 {[%clk 0:00:55.4]} 15. Nxe2
{[%clk 0:00:42.5]} 15... Nf5 {[%clk 0:00:55]} 16. Rxd8+ {[%clk 0:00:35.6]} 16...
Nxd8 {[%clk 0:00:55.1]} 17. g3 {[%clk 0:00:29.8]} 17... h4 {[%clk 0:00:51.4]}
18. Re1 {[%clk 0:00:27.8]} 18... Nxe3 {[%clk 0:00:50.4]} 19. Ned4 {[%clk
0:00:24]} 19... hxg3+ {[%clk 0:00:49.8]} 20. hxg3 {[%clk 0:00:23.9]} 20... Bc5
{[%clk 0:00:44]} 21. Rxe3+ {[%clk 0:00:23.1]} 21... Kf7 {[%clk 0:00:44.5]} 22.
b4 {[%clk 0:00:23.4]} 22... Bxd4 {[%clk 0:00:43.9]} 23. Nxd4 {[%clk 0:00:24.3]}
23... Rh8 {[%clk 0:00:39.4]} 24. Nf5 {[%clk 0:00:23.1]} 24... Ne6 {[%clk
0:00:38]} 25. Rd3 {[%clk 0:00:18.6]} 25... Ke8 {[%clk 0:00:28.6]} 26. Re3 {[%clk
0:00:16.6]} 26... Kf7 {[%clk 0:00:22.9]} 27. Rd3 {[%clk 0:00:16.8]} 27... Nf8
{[%clk 0:00:15]} 28. Re3 {[%clk 0:00:14.3]} 28... Ng6 {[%clk 0:00:12.6]} 29. Rd3
{[%clk 0:00:12.1]} 29... Rh2+ {[%clk 0:00:11.6]} 30. Kg1 {[%clk 0:00:11.5]}
30... Ra2 {[%clk 0:00:12.5]} 31. g4 {[%clk 0:00:08.4]} 31... Nxf4 {[%clk
0:00:12.2]} 32. Rd7+ {[%clk 0:00:08.7]} 32... Kf8 {[%clk 0:00:11.2]} 33. Rxc7
{[%clk 0:00:08.8]} 33... Nd3 {[%clk 0:00:08.8]} 34. Rxb7 {[%clk 0:00:08.2]}
34... Ne5 {[%clk 0:00:08.8]} 35. Rxa7 {[%clk 0:00:06.9]} 35... Nf3+ {[%clk
0:00:09.1]} 36. Kf1 {[%clk 0:00:07.2]} 36... Nd2+ {[%clk 0:00:10]} 37. Ke1
{[%clk 0:00:07.6]} 37... Nxc4 {[%clk 0:00:10.9]} 38. b5 {[%clk 0:00:07.4]} 38...
Rb2 {[%clk 0:00:10.4]} 39. a4 {[%clk 0:00:07.1]} 39... Ne5 {[%clk 0:00:10.5]}
40. Nd6 {[%clk 0:00:06.3]} 40... Nxg4 {[%clk 0:00:08.6]} 41. a5 {[%clk
0:00:04.8]} 41... Ne3 {[%clk 0:00:08.7]} 42. b6 {[%clk 0:00:04.5]} 42... Nd5
{[%clk 0:00:08.7]} 43. b7 {[%clk 0:00:04.4]} 43... Rb1+ {[%clk 0:00:04.2]} 44.
Kd2 {[%clk 0:00:04.6]} 44... Rb2+ {[%clk 0:00:03.2]} 45. Kc1 {[%clk 0:00:04.6]}
1-0

[Event "*** Titled Tuesday Blitz"]
[Site "Chess.com"]
[Date "2020.03.03"]
[Round "2"]
[White "talman67"]
[Black "ajian"]
[Result "0-1"]
[WhiteElo "2515"]
[BlackElo "2311"]
[TimeControl "180+1"]
[EndTime "13:20:47 PST"]
[Termination "ajian won by resignation"]

1. e4 {[%clk 0:03:00.9]} 1... c5 {[%clk 0:02:59.5]} 2. Nf3 {[%clk 0:03:01]} 2...
Nc6 {[%clk 0:02:59.3]} 3. Bb5 {[%clk 0:02:59.9]} 3... g6 {[%clk 0:02:58.8]} 4.
O-O {[%clk 0:02:56.4]} 4... Bg7 {[%clk 0:02:58.5]} 5. c3 {[%clk 0:02:56.9]} 5...
Nf6 {[%clk 0:02:57.2]} 6. Re1 {[%clk 0:02:55.3]} 6... O-O {[%clk 0:02:56.9]} 7.
d4 {[%clk 0:02:52.1]} 7... d5 {[%clk 0:02:55]} 8. e5 {[%clk 0:02:52.1]} 8... Ne4
{[%clk 0:02:54.6]} 9. Be3 {[%clk 0:02:51.1]} 9... cxd4 {[%clk 0:02:46.1]} 10.
cxd4 {[%clk 0:02:51.4]} 10... Qb6 {[%clk 0:02:43.1]} 11. Bxc6 {[%clk 0:02:42.2]}
11... Qxc6 {[%clk 0:02:44]} 12. Nbd2 {[%clk 0:02:39.6]} 12... Nxd2 {[%clk
0:02:34.3]} 13. Qxd2 {[%clk 0:02:37.6]} 13... Bg4 {[%clk 0:02:34.2]} 14. Rac1
{[%clk 0:02:36.2]} 14... Qb6 {[%clk 0:02:30.8]} 15. Ng5 {[%clk 0:02:28.1]} 15...
Rac8 {[%clk 0:02:23]} 16. h3 {[%clk 0:02:27.9]} 16... Bf5 {[%clk 0:02:17.8]} 17.
g4 {[%clk 0:02:21.6]} 17... Bd7 {[%clk 0:02:17.4]} 18. Nf3 {[%clk 0:02:21.8]}
18... Rxc1 {[%clk 0:01:58.4]} 19. Rxc1 {[%clk 0:02:21.3]} 19... Rc8 {[%clk
0:01:58.9]} 20. Rxc8+ {[%clk 0:02:19.2]} 20... Bxc8 {[%clk 0:01:59.8]} 21. Qc3
{[%clk 0:02:17.3]} 21... Bd7 {[%clk 0:01:54.9]} 22. Nd2 {[%clk 0:02:17.1]} 22...
Qc6 {[%clk 0:01:48]} 23. Qxc6 {[%clk 0:02:09.6]} 23... Bxc6 {[%clk 0:01:45.8]}
24. f4 {[%clk 0:02:09.6]} 24... Bd7 {[%clk 0:01:41.1]} 25. Kf2 {[%clk
0:02:00.9]} 25... f6 {[%clk 0:01:37.7]} 26. Nb1 {[%clk 0:01:58.3]} 26... fxe5
{[%clk 0:01:32.1]} 27. dxe5 {[%clk 0:01:59.2]} 27... a6 {[%clk 0:01:28.6]} 28.
Bc5 {[%clk 0:01:56.2]} 28... Kf7 {[%clk 0:01:26.4]} 29. Nc3 {[%clk 0:01:47.1]}
29... g5 {[%clk 0:01:16.2]} 30. Kg3 {[%clk 0:01:41.1]} 30... gxf4+ {[%clk
0:01:10.9]} 31. Kxf4 {[%clk 0:01:42]} 31... Ke6 {[%clk 0:01:11.4]} 32. Bd4
{[%clk 0:01:42.3]} 32... Bh6+ {[%clk 0:01:01.8]} 33. g5 {[%clk 0:01:42.3]} 33...
Bg7 {[%clk 0:01:02.3]} 34. h4 {[%clk 0:01:42.9]} 34... Be8 {[%clk 0:01:00.3]}
35. Ne2 {[%clk 0:01:37.5]} 35... Bh5 {[%clk 0:00:58.6]} 36. Nc1 {[%clk
0:01:35.2]} 36... Bg6 {[%clk 0:00:52.4]} 37. Nb3 {[%clk 0:01:34.2]} 37... b6
{[%clk 0:00:47.7]} 38. Nd2 {[%clk 0:01:28.5]} 38... Bc2 {[%clk 0:00:43.7]} 39.
Nf1 {[%clk 0:01:28.1]} 39... h6 {[%clk 0:00:40.9]} 40. Ng3 {[%clk 0:01:25.9]}
40... hxg5+ {[%clk 0:00:39.2]} 41. hxg5 {[%clk 0:01:26.4]} 41... Bd3 {[%clk
0:00:35.5]} 42. Nh5 {[%clk 0:01:24.5]} 42... Bh8 {[%clk 0:00:35.4]} 43. Ke3
{[%clk 0:01:20.3]} 43... Be4 {[%clk 0:00:33.4]} 44. Nf4+ {[%clk 0:01:19.7]}
44... Kf5 {[%clk 0:00:27.8]} 45. g6 {[%clk 0:01:20.1]} 45... Bg7 {[%clk
0:00:27.4]} 46. e6 {[%clk 0:01:18.3]} 46... Bxd4+ {[%clk 0:00:24.4]} 47. Kxd4
{[%clk 0:01:19.2]} 47... Kxf4 {[%clk 0:00:25.3]} 48. g7 {[%clk 0:01:18.2]} 48...
Bh7 {[%clk 0:00:25.5]} 49. Kxd5 {[%clk 0:01:10]} 49... Kf5 {[%clk 0:00:25.3]}
50. b4 {[%clk 0:01:07.6]} 50... b5 {[%clk 0:00:20.5]} 51. a3 {[%clk 0:00:54.6]}
51... Bg8 {[%clk 0:00:17.8]} 52. Kc6 {[%clk 0:00:53.8]} 52... Bxe6 {[%clk
0:00:17.5]} 53. Kb6 {[%clk 0:00:54.1]} 53... Bg8 {[%clk 0:00:14.1]} 54. Kxa6
{[%clk 0:00:53.4]} 54... e5 {[%clk 0:00:12]} 55. a4 {[%clk 0:00:52.9]} 55...
bxa4 {[%clk 0:00:09]} 56. b5 {[%clk 0:00:53.4]} 56... a3 {[%clk 0:00:09.9]} 57.
b6 {[%clk 0:00:53.3]} 57... a2 {[%clk 0:00:10.2]} 58. b7 {[%clk 0:00:53.7]}
58... a1=Q+ {[%clk 0:00:11.1]} 59. Kb6 {[%clk 0:00:54.6]} 59... Qb2+ {[%clk
0:00:11.1]} 60. Kc7 {[%clk 0:00:54.9]} 60... Qxb7+ {[%clk 0:00:11]} 61. Kxb7
{[%clk 0:00:55.3]} 61... e4 {[%clk 0:00:11.3]} 62. Kc7 {[%clk 0:00:54.4]} 62...
e3 {[%clk 0:00:12.2]} 63. Kd7 {[%clk 0:00:54.8]} 63... e2 {[%clk 0:00:12.5]} 64.
Ke7 {[%clk 0:00:55.3]} 64... e1=Q+ {[%clk 0:00:12.6]} 65. Kf8 {[%clk 0:00:55.9]}
65... Be6 {[%clk 0:00:10.7]} 66. g8=Q {[%clk 0:00:52.2]} 66... Bxg8 {[%clk
0:00:09.8]} 67. Kg7 {[%clk 0:00:53.1]} 67... Qe7+ {[%clk 0:00:08.3]} 68. Kxg8
{[%clk 0:00:52.1]} 68... Kg6 {[%clk 0:00:07.7]} 0-1

[Event "*** Titled Tuesday Blitz"]
[Site "Chess.com"]
[Date "2020.03.03"]
[Round "2"]
[White "vova-79"]
[Black "Marcus_Harvey"]
[Result "0-1"]
[WhiteElo "2556"]
[BlackElo "2759"]
[TimeControl "180+1"]
[EndTime "13:20:49 PST"]
[Termination "Marcus_Harvey won by resignation"]

1. d4 {[%clk 0:03:00.9]} 1... Nf6 {[%clk 0:02:59.1]} 2. c4 {[%clk 0:03:00.7]}
2... e6 {[%clk 0:02:59.3]} 3. Nc3 {[%clk 0:03:00.9]} 3... Bb4 {[%clk 0:02:59.2]}
4. e3 {[%clk 0:03:00.9]} 4... O-O {[%clk 0:02:59.4]} 5. Ne2 {[%clk 0:03:01.3]}
5... Re8 {[%clk 0:02:59.7]} 6. a3 {[%clk 0:03:01.5]} 6... Bf8 {[%clk 0:03:00.2]}
7. Ng3 {[%clk 0:03:01.5]} 7... d5 {[%clk 0:03:00.7]} 8. Be2 {[%clk 0:03:01.5]}
8... a6 {[%clk 0:02:50.9]} 9. O-O {[%clk 0:03:00.3]} 9... dxc4 {[%clk
0:02:50.7]} 10. Bxc4 {[%clk 0:02:59.2]} 10... b5 {[%clk 0:02:50.9]} 11. Be2
{[%clk 0:02:57.9]} 11... Bb7 {[%clk 0:02:50.6]} 12. Bf3 {[%clk 0:02:51.9]} 12...
Qc8 {[%clk 0:02:50.6]} 13. Nge4 {[%clk 0:02:42.4]} 13... Nbd7 {[%clk 0:02:39.1]}
14. Bd2 {[%clk 0:02:36.5]} 14... Ra7 {[%clk 0:02:25.5]} 15. Rc1 {[%clk
0:02:32.1]} 15... Qa8 {[%clk 0:02:25.3]} 16. Nxf6+ {[%clk 0:02:30.6]} 16... Nxf6
{[%clk 0:02:25.3]} 17. Bxb7 {[%clk 0:02:27.5]} 17... Qxb7 {[%clk 0:02:25.3]} 18.
Qe2 {[%clk 0:02:24.7]} 18... Raa8 {[%clk 0:02:22.2]} 19. Rfd1 {[%clk 0:02:23.5]}
19... Rac8 {[%clk 0:02:20.2]} 20. Na2 {[%clk 0:02:22.8]} 20... c5 {[%clk
0:02:19.6]} 21. dxc5 {[%clk 0:02:20.9]} 21... Bxc5 {[%clk 0:02:19.5]} 22. h3
{[%clk 0:02:17.5]} 22... Ne4 {[%clk 0:02:18.1]} 23. Bb4 {[%clk 0:02:15.4]} 23...
Bxb4 {[%clk 0:02:05.3]} 24. Nxb4 {[%clk 0:02:14.3]} 24... Nc5 {[%clk 0:01:58.5]}
25. Rc3 {[%clk 0:02:04.1]} 25... Na4 {[%clk 0:01:57.7]} 26. Rcd3 {[%clk
0:02:02.6]} 26... Nc5 {[%clk 0:01:14.3]} 27. Rc3 {[%clk 0:01:50.2]} 27... g6
{[%clk 0:01:04.7]} 28. Rdc1 {[%clk 0:01:48.6]} 28... Na4 {[%clk 0:01:03.4]} 29.
Rxc8 {[%clk 0:01:31.5]} 29... Rxc8 {[%clk 0:01:04.3]} 30. Rxc8+ {[%clk
0:01:30.9]} 30... Qxc8 {[%clk 0:01:05.2]} 31. Qd2 {[%clk 0:01:24.5]} 31... a5
{[%clk 0:01:00]} 32. Na2 {[%clk 0:01:10.4]} 32... Qc4 {[%clk 0:00:57.1]} 33. Nc1
{[%clk 0:01:09.3]} 33... Nc5 {[%clk 0:00:47.5]} 34. b3 {[%clk 0:01:00.8]} 34...
Nxb3 {[%clk 0:00:32]} 35. Nxb3 {[%clk 0:00:53.4]} 35... Qxb3 {[%clk 0:00:32.9]}
36. Qxa5 {[%clk 0:00:52]} 36... Kg7 {[%clk 0:00:32.7]} 37. g3 {[%clk 0:00:49]}
37... h5 {[%clk 0:00:29.9]} 38. h4 {[%clk 0:00:47.8]} 38... Qd1+ {[%clk
0:00:28.7]} 39. Kg2 {[%clk 0:00:46.4]} 39... Qd5+ {[%clk 0:00:28.6]} 40. Kg1
{[%clk 0:00:46]} 40... Kf6 {[%clk 0:00:29]} 41. Qb4 {[%clk 0:00:42.1]} 41... e5
{[%clk 0:00:24.4]} 42. Kh2 {[%clk 0:00:40.7]} 42... Qc6 {[%clk 0:00:18.9]} 43.
Qb2 {[%clk 0:00:35.4]} 43... Ke6 {[%clk 0:00:18.6]} 44. Qb3+ {[%clk 0:00:33.9]}
44... Qc4 {[%clk 0:00:16.8]} 45. Qb2 {[%clk 0:00:24.8]} 45... f5 {[%clk
0:00:14]} 46. Kg2 {[%clk 0:00:20.7]} 46... Kd6 {[%clk 0:00:13.7]} 47. Qd2+
{[%clk 0:00:18.2]} 47... Qd5+ {[%clk 0:00:13.3]} 48. Qxd5+ {[%clk 0:00:16.7]}
48... Kxd5 {[%clk 0:00:14.2]} 49. Kf3 {[%clk 0:00:15.9]} 49... Kc4 {[%clk
0:00:14.3]} 50. e4 {[%clk 0:00:15.3]} 50... Kb3 {[%clk 0:00:14.5]} 51. exf5
{[%clk 0:00:14.4]} 51... gxf5 {[%clk 0:00:15.4]} 52. Ke3 {[%clk 0:00:15.2]}
52... Kxa3 {[%clk 0:00:15.8]} 53. f4 {[%clk 0:00:14.2]} 53... exf4+ {[%clk
0:00:15.9]} 54. Kxf4 {[%clk 0:00:12.9]} 54... b4 {[%clk 0:00:16.3]} 55. Kxf5
{[%clk 0:00:13.8]} 55... b3 {[%clk 0:00:16.7]} 0-1

[Event "*** Titled Tuesday Blitz"]
[Site "Chess.com"]
[Date "2020.03.03"]
[Round "2"]
[White "vpantev"]
[Black "TigrVShlyape"]
[Result "1-0"]
[WhiteElo "2636"]
[BlackElo "2882"]
[TimeControl "180+1"]
[EndTime "13:20:56 PST"]
[Termination "vpantev won by resignation"]

1. d4 {[%clk 0:02:59.5]} 1... d5 {[%clk 0:02:57.9]} 2. Nf3 {[%clk 0:02:58.9]}
2... Nf6 {[%clk 0:02:57]} 3. Bf4 {[%clk 0:02:58.3]} 3... e6 {[%clk 0:02:48.5]}
4. e3 {[%clk 0:02:57.9]} 4... Bd6 {[%clk 0:02:48.6]} 5. Bg3 {[%clk 0:02:57.8]}
5... O-O {[%clk 0:02:45.6]} 6. c4 {[%clk 0:02:57.7]} 6... c5 {[%clk 0:02:42.1]}
7. cxd5 {[%clk 0:02:57.1]} 7... Nxd5 {[%clk 0:02:39.9]} 8. Nc3 {[%clk
0:02:54.4]} 8... Nxc3 {[%clk 0:02:33.6]} 9. bxc3 {[%clk 0:02:53.8]} 9... Nc6
{[%clk 0:02:29.4]} 10. Bd3 {[%clk 0:02:47.8]} 10... cxd4 {[%clk 0:02:18.9]} 11.
Bxd6 {[%clk 0:02:47.1]} 11... Qxd6 {[%clk 0:02:18]} 12. cxd4 {[%clk 0:02:46.4]}
12... h6 {[%clk 0:02:02.7]} 13. O-O {[%clk 0:02:44.7]} 13... b6 {[%clk
0:02:01.5]} 14. Qe2 {[%clk 0:02:38]} 14... Bb7 {[%clk 0:01:57.4]} 15. Ba6 {[%clk
0:02:37.7]} 15... Bxa6 {[%clk 0:01:55]} 16. Qxa6 {[%clk 0:02:37.2]} 16... Nb4
{[%clk 0:01:54.5]} 17. Qa4 {[%clk 0:02:36.1]} 17... Nd5 {[%clk 0:01:32.3]} 18.
Ne5 {[%clk 0:02:27.3]} 18... a6 {[%clk 0:01:29.4]} 19. h3 {[%clk 0:02:25]} 19...
b5 {[%clk 0:01:28.8]} 20. Qa5 {[%clk 0:02:24]} 20... Rfc8 {[%clk 0:01:27.7]} 21.
Rfc1 {[%clk 0:02:22.9]} 21... Qb6 {[%clk 0:01:11.6]} 22. Qxb6 {[%clk 0:02:16.5]}
22... Nxb6 {[%clk 0:01:11.5]} 23. Nc6 {[%clk 0:02:16.5]} 23... Kf8 {[%clk
0:01:09.7]} 24. Na5 {[%clk 0:02:16]} 24... Ke7 {[%clk 0:01:07.1]} 25. Kf1 {[%clk
0:02:14.5]} 25... f5 {[%clk 0:01:01.2]} 26. Ke2 {[%clk 0:02:14.2]} 26... Kd6
{[%clk 0:00:59.4]} 27. Kd3 {[%clk 0:02:09.7]} 27... Na4 {[%clk 0:00:49]} 28. f3
{[%clk 0:01:52.3]} 28... e5 {[%clk 0:00:44.9]} 29. dxe5+ {[%clk 0:01:51.8]}
29... Kxe5 {[%clk 0:00:44.3]} 30. g4 {[%clk 0:01:48]} 30... Nb2+ {[%clk
0:00:38.5]} 31. Ke2 {[%clk 0:01:45.7]} 31... Nc4 {[%clk 0:00:36.3]} 32. Nxc4+
{[%clk 0:01:45.3]} 32... Rxc4 {[%clk 0:00:36]} 33. Rxc4 {[%clk 0:01:40.3]} 33...
bxc4 {[%clk 0:00:36.4]} 34. Rb1 {[%clk 0:01:37.4]} 34... Rc8 {[%clk 0:00:34.9]}
35. f4+ {[%clk 0:01:33.8]} 35... Kd5 {[%clk 0:00:30.4]} 36. gxf5 {[%clk
0:01:33.2]} 36... c3 {[%clk 0:00:30.2]} 37. Kd3 {[%clk 0:01:33.2]} 37... Rc5
{[%clk 0:00:21.7]} 38. Rc1 {[%clk 0:01:32.7]} 38... Ra5 {[%clk 0:00:20.3]} 39.
Rxc3 {[%clk 0:01:30.7]} 39... Rxa2 {[%clk 0:00:20.3]} 40. e4+ {[%clk 0:01:30.9]}
40... Kd6 {[%clk 0:00:20.2]} 41. Rb3 {[%clk 0:01:27.4]} 41... Kc6 {[%clk
0:00:19.5]} 42. Kd4 {[%clk 0:01:22.9]} 42... a5 {[%clk 0:00:16.5]} 43. Ke5
{[%clk 0:01:21.7]} 43... a4 {[%clk 0:00:16.8]} 44. Rc3+ {[%clk 0:01:21.6]} 44...
Kd7 {[%clk 0:00:14]} 45. f6 {[%clk 0:01:21.8]} 45... gxf6+ {[%clk 0:00:13.6]}
46. Kxf6 {[%clk 0:01:22]} 46... Rb2 {[%clk 0:00:11.5]} 47. Rd3+ {[%clk
0:01:14.5]} 47... Ke8 {[%clk 0:00:10.5]} 48. Rd6 {[%clk 0:01:13.6]} 48... Rb4
{[%clk 0:00:09.6]} 49. Kf5 {[%clk 0:01:12.2]} 49... Rb5+ {[%clk 0:00:09.5]} 50.
e5 {[%clk 0:01:11.1]} 50... Ra5 {[%clk 0:00:09.9]} 51. Rd2 {[%clk 0:01:11.2]}
51... a3 {[%clk 0:00:10]} 52. Ra2 {[%clk 0:01:11.2]} 52... Kf7 {[%clk
0:00:10.3]} 53. h4 {[%clk 0:01:11.3]} 53... Ra4 {[%clk 0:00:09.1]} 54. h5 {[%clk
0:01:10]} 54... Ra5 {[%clk 0:00:08.2]} 55. Ke4 {[%clk 0:01:08.4]} 55... Ra4+
{[%clk 0:00:08.6]} 56. Kd5 {[%clk 0:01:08.6]} 56... Ra5+ {[%clk 0:00:07.7]} 57.
Kd6 {[%clk 0:01:08.7]} 57... Ra6+ {[%clk 0:00:08]} 58. Kc5 {[%clk 0:01:08.8]}
58... Ke6 {[%clk 0:00:07.6]} 59. Kb4 {[%clk 0:01:06.6]} 59... Rb6+ {[%clk
0:00:06.6]} 60. Kc5 {[%clk 0:01:06.4]} 60... Ra6 {[%clk 0:00:06]} 61. Kb4 {[%clk
0:01:06.5]} 61... Rb6+ {[%clk 0:00:06.2]} 62. Kxa3 {[%clk 0:01:06.2]} 62... Kf5
{[%clk 0:00:06.2]} 63. Re2 {[%clk 0:01:06]} 63... Rb7 {[%clk 0:00:05.2]} 64. Rf2
{[%clk 0:01:05.4]} 64... Rb1 {[%clk 0:00:04.9]} 65. Ka2 {[%clk 0:01:05]} 65...
Rb7 {[%clk 0:00:04.6]} 66. Ka3 {[%clk 0:01:05.1]} 66... Rb8 {[%clk 0:00:05.1]}
67. Ka4 {[%clk 0:01:05.2]} 67... Rb7 {[%clk 0:00:05.6]} 68. Ka5 {[%clk
0:01:05.3]} 68... Rb8 {[%clk 0:00:06.1]} 69. Ka6 {[%clk 0:01:05.5]} 69... Rb4
{[%clk 0:00:06.1]} 70. Re2 {[%clk 0:01:03.4]} 70... Rb8 {[%clk 0:00:05.4]} 71.
e6 {[%clk 0:01:03.6]} 71... Re8 {[%clk 0:00:04.9]} 72. e7 {[%clk 0:01:02.9]}
72... Kf6 {[%clk 0:00:05.1]} 73. Kb6 {[%clk 0:01:02.8]} 73... Rxe7 {[%clk
0:00:05.3]} 74. Rxe7 {[%clk 0:01:02.5]} 74... Kxe7 {[%clk 0:00:05.6]} 75. Kc5
{[%clk 0:01:03]} 75... Ke6 {[%clk 0:00:05.8]} 76. Kd4 {[%clk 0:01:03]} 76... Kf5
{[%clk 0:00:06.3]} 77. Ke3 {[%clk 0:01:03.4]} 77... Kg4 {[%clk 0:00:06.6]} 78.
Ke4 {[%clk 0:01:03.2]} 78... Kxh5 {[%clk 0:00:06.8]} 79. f5 {[%clk 0:01:03.3]}
79... Kg5 {[%clk 0:00:06.9]} 80. Ke5 {[%clk 0:01:03.6]} 80... h5 {[%clk
0:00:06.5]} 81. f6 {[%clk 0:01:04]} 81... h4 {[%clk 0:00:06.2]} 82. f7 {[%clk
0:01:04.2]} 1-0